bitfinex-derivatives/quotes_BNBF0:USTF0_20250316
["timestamp","ask_amount","ask_price","bid_price","bid_amount"]
[1742157164996,0.27785927,601.42,600.06,0.3059673]
[1742157165193,0.27785927,601.41,600.05,0.96930555]
[1742157165396,0.27785927,601.4,600.05,0.96930555]
[1742157165588,0.27792194,601.39,600.05,0.96930555]
[1742157165792,0.27792194,601.42,600.05,0.96930555]
[1742157165990,0.27792194,601.41,600.05,0.96930555]
[1742157166294,0.27792194,601.4,600.05,0.96930555]
[1742157166492,0.27792194,601.42,600.05,0.96930555]
[1742157166690,0.27792194,601.41,600.05,0.96930555]
[1742157166889,0.27792194,601.4,600.05,0.96930555]
[1742157167196,0.27792194,601.39,600.05,0.96930555]
[1742157167393,0.33256842,601.38,600.05,0.96930555]
[1742157167595,0.27790932,601.37,600.05,0.96930555]
[1742157167895,0.61048327,601.37,600.05,0.96930555]
[1742157168095,0.27790932,601.36,600.05,0.96930555]
[1742157169291,0.27791457,601.35,600.05,0.96930555]
[1742157169492,0.27791457,601.36,600.05,0.96930555]
[1742157169688,0.27791457,601.35,600.05,0.96930555]
[1742157169995,0.27791457,601.34,600.05,0.96930555]
[1742157170195,0.27791457,601.36,600.05,0.96930555]
[1742157170494,0.27791457,601.35,600.05,0.96930555]
[1742157170695,0.27791457,601.36,600.05,0.96930555]
[1742157170995,0.27791457,601.35,600.05,0.96930555]
[1742157171394,0.27791457,601.34,600.05,0.96930555]
[1742157171595,0.27791457,601.36,600.05,0.96930555]
[1742157171895,0.27791457,601.35,600.05,0.96930555]
[1742157172096,0.27791457,601.36,600.05,0.96930555]
[1742157172291,0.27791457,601.35,600.05,0.96930555]
[1742157172489,0.27791457,601.36,600.06,0.3333]
[1742157172690,0.27791457,601.35,600.06,0.3333]
[1742157172892,0.27791457,601.36,600.06,0.3333]
[1742157173093,0.27791457,601.35,600.06,0.3333]
[1742157173397,0.27791457,601.34,600.06,0.3333]
[1742157173592,0.27791457,601.33,600.07,0.30596203]
[1742157173794,0.27791457,601.36,600.08,0.33328889]
[1742157173996,0.27791457,601.35,600.09,0.30596203]
[1742157174299,0.27791457,601.34,600.1,0.33327778]
[1742157174596,0.27791457,601.33,600.11,0.30596203]
[1742157174792,0.27791457,601.36,600.12,0.33326667]
[1742157174994,0.33257395,601.37,600.13,0.3059369]
[1742157175296,0.27783611,601.36,600.14,0.33325557]
[1742157175491,0.27783611,601.36,600.15,0.3059369]
[1742157176090,0.27783611,601.36,600.16,0.33324446]
[1742157176293,0.27783611,601.36,600.17,0.3059369]
[1742157176492,0.27783611,601.36,600.18,0.33323336]
[1742157176997,0.27783611,601.36,600.19,0.3059369]
[1742157177191,0.27783611,601.36,600.18,0.33323336]
[1742157177993,0.27783611,601.36,600.19,0.30593664]
[1742157181694,0.27783611,601.36,600.2,0.33322225]
[1742157181893,0.27783611,601.36,600.21,0.30593664]
[1742157182695,0.27783611,601.36,600.2,0.33322225]
[1742157185297,0.27783611,601.36,600.21,0.30592174]
[1742157185700,0.27781288,601.35,600.22,0.33321115]
[1742157186003,0.27781288,601.36,600.22,0.33321115]
[1742157186202,0.27781288,601.34,600.22,0.33321115]
[1742157186396,0.27781288,601.33,600.22,0.33321115]
[1742157186602,0.27781288,601.32,600.22,0.33321115]
[1742157186801,0.27781288,601.36,600.22,0.33321115]
[1742157187003,0.27781288,601.35,600.22,0.33321115]
[1742157187199,0.27781288,601.36,600.22,0.33321115]
[1742157189207,0.33257395,601.37,600.22,0.33321115]
[1742157189399,0.277791,601.35,600.22,0.33321115]
[1742157189604,0.277791,601.34,600.22,0.33321115]
[1742157189906,0.277791,601.33,600.22,0.33321115]
[1742157190305,0.33257395,601.37,600.22,0.33321115]
[1742157190501,0.27778955,601.36,600.22,0.33321115]
[1742157191007,0.33257395,601.37,600.22,0.33321115]
[1742157191206,0.27778968,601.36,600.22,0.33321115]
[1742157192602,0.33257395,601.37,600.22,0.33321115]
[1742157192908,0.27778624,601.36,600.22,0.33321115]
[1742157193807,0.27778624,601.36,600.23,0.659]
[1742157194009,0.27778624,601.36,600.24,0.33320005]
[1742157197911,0.61011485,601.81,600.24,0.33320005]
[1742157198111,0.27778405,601.8,600.24,0.33320005]
[1742157198311,0.33234184,601.79,600.24,0.33320005]
[1742157198511,0.27778405,601.78,600.24,0.33320005]
[1742157198707,0.33235289,601.77,600.24,0.33320005]
[1742157198910,0.27778405,601.76,600.24,0.33320005]
[1742157199110,0.27778405,601.75,600.24,0.33320005]
[1742157199308,0.27778405,601.74,600.24,0.33320005]
[1742157199508,0.27778405,601.73,600.24,0.33320005]
[1742157199712,0.33235289,601.77,600.24,0.33320005]
[1742157199713,0.27778405,601.72,600.24,0.33320005]
[1742157199914,0.27778405,601.71,600.24,0.33320005]
[1742157200105,0.27778405,601.7,600.24,0.33320005]
[1742157200513,0.27778405,601.69,600.24,0.33320005]
[1742157200814,0.61018665,601.68,600.24,0.33320005]
[1742157201012,0.27778405,601.67,600.24,0.33320005]
[1742157201211,0.27778405,601.66,600.24,0.33320005]
[1742157201414,0.61020323,601.65,600.24,0.33320005]
[1742157201619,0.27778405,601.64,600.25,0.30591442]
[1742157201816,0.27778405,601.63,600.26,0.33318895]
[1742157202019,0.6102198,601.62,600.27,0.30591442]
[1742157202218,0.61022533,601.61,600.27,0.63909782]
[1742157202414,0.61023085,601.6,600.28,0.30591442]
[1742157202617,0.61023638,601.59,600.28,0.30591442]
[1742157202814,0.27778405,601.58,600.27,0.3331834]
[1742157208622,0.33245233,601.59,600.27,0.3331834]
[1742157208824,0.27774178,601.58,600.27,0.3331834]
[1742157211829,0.33245233,601.59,600.27,0.3331834]
[1742157212029,0.27775147,601.58,600.27,0.3331834]
[1742157212729,0.27775147,601.58,600.28,0.30585131]
[1742157212924,0.27775147,601.58,600.29,0.3331723]
[1742157213526,0.33245233,601.59,600.29,0.3331723]
[1742157213729,0.27776149,601.58,600.29,0.3331723]
[1742157217338,0.6103124,601.57,600.29,0.3331723]
[1742157217534,0.27784902,601.56,600.29,0.3331723]
[1742157217736,0.33247444,601.55,600.29,0.3331723]
[1742157218038,0.27784902,601.54,600.29,0.3331723]
[1742157218236,0.33248549,601.53,600.29,0.3331723]
[1742157218434,0.27784902,601.52,600.29,0.3331723]
[1742157218631,0.33249655,601.51,600.29,0.3331723]
[1742157218832,0.27784902,601.5,600.29,0.3331723]
[1742157219035,0.3325076,601.49,600.29,0.3331723]
[1742157219435,0.27786203,601.48,600.29,0.3331723]
[1742157220939,0.3325076,601.49,600.29,0.3331723]
[1742157221736,0.27786877,601.48,600.29,0.3331723]
[1742157226744,0.27786173,601.47,600.29,0.3331723]
[1742157226946,0.27786173,601.46,600.29,0.3331723]
[1742157227248,0.27786173,601.45,600.29,0.3331723]
[1742157227542,0.27783431,601.44,600.29,0.3331723]
[1742157227747,0.27783431,601.48,600.29,0.3331723]
[1742157227944,0.27783431,601.47,600.29,0.3331723]
[1742157228344,0.27783431,601.46,600.29,0.3331723]
[1742157228545,0.27783431,601.48,600.29,0.3331723]
[1742157228744,0.27783087,601.47,600.29,0.3331723]
[1742157228943,0.27783087,601.48,600.29,0.3331723]
[1742157229147,0.27783087,601.47,600.29,0.3331723]
[1742157229347,0.27783087,601.48,600.29,0.3331723]
[1742157229544,0.27783087,601.46,600.29,0.3331723]
[1742157229746,0.27783087,601.45,600.29,0.3331723]
[1742157229947,0.27783087,601.48,600.29,0.3331723]
[1742157230149,0.27783087,601.47,600.29,0.3331723]
[1742157230350,0.27783087,601.48,600.29,0.3331723]
[1742157230548,0.27783087,601.47,600.29,0.3331723]
[1742157230748,0.27783087,601.48,600.29,0.3331723]
[1742157230944,0.27783087,601.46,600.29,0.3331723]
[1742157231250,0.27783087,601.45,600.29,0.3331723]
[1742157231444,0.27783087,601.48,600.29,0.3331723]
[1742157232350,0.3325076,601.49,600.29,0.3331723]
[1742157232552,0.27779776,601.48,600.29,0.3331723]
[1742157236053,0.27782212,601.47,600.29,0.3331723]
[1742157236255,0.27782212,601.48,600.29,0.3331723]
[1742157239659,0.27782212,601.47,600.29,0.3331723]
[1742157239860,0.27782212,601.46,600.29,0.3331723]
[1742157240158,0.27782212,601.45,600.29,0.3331723]
[1742157240459,0.27782212,601.44,600.29,0.3331723]
[1742157240656,0.27782212,601.43,600.29,0.3331723]
[1742157240863,0.27782212,601.42,600.29,0.3331723]
[1742157241062,0.27782212,601.41,600.29,0.3331723]
[1742157241258,0.27782212,601.4,600.29,0.3331723]
[1742157241463,0.27782212,601.39,600.29,0.3331723]
[1742157241662,0.27782212,601.38,600.29,0.3331723]
[1742157241865,0.27782212,601.48,600.29,0.3331723]
[1742157242161,0.27782212,601.47,600.29,0.3331723]
[1742157242364,0.27782212,601.46,600.29,0.3331723]
[1742157242563,0.27782212,601.45,600.29,0.3331723]
[1742157242863,0.27782212,601.44,600.29,0.3331723]
[1742157243063,0.27782212,601.43,600.29,0.3331723]
[1742157243259,0.27782212,601.42,600.29,0.3331723]
[1742157243559,0.27782212,601.41,600.29,1.0851723]
[1742157243762,0.27782212,601.4,600.29,1.0851723]
[1742157243964,0.27782212,601.39,600.29,1.0851723]
[1742157244265,0.27782212,601.38,600.29,1.0851723]
[1742157244561,0.27782212,601.37,600.29,1.0851723]
[1742157244864,0.3325076,601.49,600.29,1.0851723]
[1742157245165,0.27802008,601.48,600.29,1.0851723]
[1742157245463,0.27802008,601.47,600.29,1.0851723]
[1742157245664,0.27802008,601.46,600.29,1.0851723]
[1742157246164,0.27802008,601.45,600.29,1.0851723]
[1742157246362,0.27802008,601.44,600.29,1.0851723]
[1742157246559,0.27802008,601.43,600.29,1.0851723]
[1742157246763,0.27802008,601.42,600.29,1.0851723]
[1742157247065,0.3325076,601.49,600.29,1.0851723]
[1742157247066,0.27802008,601.41,600.29,1.0851723]
[1742157247268,0.27802008,601.4,600.29,1.0851723]
[1742157247467,0.27802008,601.39,600.29,1.0851723]
[1742157247665,0.27802008,601.38,600.29,1.0851723]
[1742157247862,1.53155076,601.41,600.29,1.0851723]
[1742157248467,4.37716512,601.41,600.29,1.0851723]
[1742157248770,5.47426948,601.4,600.29,1.0851723]
[1742157249068,1.53155076,601.39,600.29,1.0851723]
[1742157249267,1.8095716,601.39,600.29,1.0851723]
[1742157249464,0.27802084,601.38,600.29,1.0851723]
[1742157249668,0.27802084,601.37,600.29,1.0851723]
[1742157249966,0.27802084,601.36,600.29,1.0851723]
[1742157250162,0.27802084,601.35,600.29,1.0851723]
[1742157250367,1.53155076,601.39,600.29,1.0851723]
[1742157250368,0.27802084,601.34,600.29,1.0851723]
[1742157250665,0.27802084,601.33,600.29,1.0851723]
[1742157250867,0.27802084,601.32,600.29,1.0851723]
[1742157251067,0.27802084,601.31,600.29,1.0851723]
[1742157251368,0.27802084,601.3,600.29,1.0851723]
[1742157251568,0.27802084,601.29,600.29,1.0851723]
[1742157251764,0.27802084,601.28,600.29,1.0851723]
[1742157251962,0.27802084,601.27,600.29,1.0851723]
[1742157252166,0.27802084,601.26,600.29,1.0851723]
[1742157252566,0.27802084,601.25,600.29,1.0851723]
[1742157252769,0.27802084,601.24,600.29,1.0851723]
[1742157252966,0.27802084,601.23,600.29,1.0851723]
[1742157253166,0.27802084,601.35,600.29,1.0851723]
[1742157253367,0.27802084,601.34,600.29,1.0851723]
[1742157253563,0.27802084,601.33,600.29,1.0851723]
[1742157253770,0.27802084,601.32,600.29,1.0851723]
[1742157253964,3.66469788,601.36,600.29,1.0851723]
[1742157254164,2.84561436,601.37,600.29,1.0851723]
[1742157254367,2.51575315,601.52,600.29,1.0851723]
[1742157256770,2.51575315,601.52,600.29,0.752]
[1742157257469,2.51575315,601.43,600.29,0.752]
[1742157257670,0.33255183,601.41,600.29,0.752]
[1742157274181,2.84830498,601.41,600.29,0.752]
[1742157276281,2.51575315,601.22,600.29,0.752]
[1742157276478,0.33266246,601.21,600.29,0.752]
[1742157310313,2.51575315,601.7,600.29,0.752]
[1742157310514,0.33239708,601.69,600.29,0.752]
[1742157311512,2.51575315,601.66,600.29,0.752]
[1742157311718,0.33241918,601.65,600.29,0.752]
[1742157313315,2.51575315,601.55,600.29,0.752]
[1742157313516,0.33247996,601.54,600.29,0.752]
[1742157315020,2.51575315,601.5,600.29,0.752]
[1742157315922,1.53559078,601.49,600.29,0.752]
[1742157316123,5.21069492,601.49,600.29,0.752]
[1742157316323,5.21069492,601.48,600.29,0.752]
[1742157316525,5.21069492,601.47,600.29,0.752]
[1742157316826,5.21069492,601.46,600.29,0.752]
[1742157317127,5.21069492,601.45,600.29,0.752]
[1742157317325,1.53559078,601.44,600.29,0.752]
[1742157317519,1.53559078,601.47,600.29,0.752]
[1742157318024,2.86130441,601.47,600.29,0.752]
[1742157318223,0.27790747,601.45,600.29,0.752]
[1742157318421,2.86130441,601.47,600.29,0.752]
[1742157318819,0.27790798,601.49,600.29,0.752]
[1742157319824,2.51575315,601.43,600.29,0.752]
[1742157321325,0.27790798,601.49,600.29,0.752]
[1742157325729,0.27790798,601.49,600.29,1.0851723]
[1742157328630,0.27782269,601.48,600.29,1.0851723]
[1742157329632,0.27782608,601.47,600.29,1.0851723]
[1742157329832,0.27782608,601.48,600.29,1.0851723]
[1742157330130,0.27790798,601.49,600.29,1.0851723]
[1742157331432,0.27784123,601.48,600.29,1.0851723]
[1742157331632,0.27790798,601.49,600.29,1.0851723]
[1742157331831,0.27782842,601.47,600.29,1.0851723]
[1742157332031,0.27782842,601.48,600.29,1.0851723]
[1742157335735,0.27790798,601.49,600.29,1.0851723]
[1742157336634,0.27783511,601.48,600.29,1.0851723]
[1742157337236,0.27781607,601.47,600.29,1.0851723]
[1742157337541,0.27781607,601.46,600.29,1.0851723]
[1742157337738,0.27781607,601.45,600.29,1.0851723]
[1742157337934,0.27781607,601.48,600.29,1.0851723]
[1742157338238,0.27781607,601.44,600.29,1.0851723]
[1742157338435,0.27781607,601.43,600.29,1.0851723]
[1742157338741,0.27790798,601.49,600.29,1.0851723]
[1742157338938,0.27782017,601.42,600.29,1.0851723]
[1742157339134,0.27782017,601.41,600.29,1.0851723]
[1742157339342,0.27782017,601.48,600.29,1.0851723]
[1742157339642,0.27782017,601.47,600.29,1.0851723]
[1742157339943,0.27782017,601.46,600.29,1.0851723]
[1742157340337,0.27782017,601.45,600.29,1.0851723]
[1742157340538,0.27782017,601.44,600.29,1.0851723]
[1742157340741,0.27790798,601.49,600.29,1.0851723]
[1742157342440,0.27780196,601.48,600.29,1.0851723]
[1742157342842,0.27790798,601.49,600.29,1.0851723]
[1742157343039,0.27779315,601.48,600.29,1.0851723]
[1742157344651,0.27790798,601.49,600.29,1.0851723]
[1742157344849,0.27783492,601.48,600.29,1.0851723]
[1742157348247,0.27790798,601.49,600.29,1.0851723]
[1742157348445,0.2778371,601.48,600.29,1.0851723]
[1742157350146,0.27790798,601.49,600.29,1.0851723]
[1742157350355,0.27781748,601.48,600.29,1.0851723]
[1742157353752,0.27782474,601.47,600.29,1.0851723]
[1742157353957,0.27782474,601.48,600.29,1.0851723]
[1742157354157,0.27782474,601.47,600.29,1.0851723]
[1742157354356,0.27782474,601.46,600.29,1.0851723]
[1742157354557,0.27782474,601.48,600.29,1.0851723]
[1742157354754,0.27782474,601.47,600.29,1.0851723]
[1742157354951,0.27782474,601.46,600.29,1.0851723]
[1742157355152,0.27782474,601.48,600.29,1.0851723]
[1742157355357,0.27790798,601.49,600.29,1.0851723]
[1742157355557,0.27782663,601.48,600.29,1.0851723]
[1742157359056,0.27782663,601.47,600.29,1.0851723]
[1742157359259,0.27782928,601.46,600.29,1.0851723]
[1742157359461,0.27782928,601.45,600.29,1.0851723]
[1742157359657,0.27782928,601.44,600.29,1.0851723]
[1742157359963,0.27790798,601.49,600.29,1.0851723]
[1742157359964,0.27782928,601.43,600.29,1.0851723]
[1742157360166,0.27782928,601.48,600.29,1.0851723]
[1742157360359,0.27782928,601.47,600.29,1.0851723]
[1742157360558,0.27782928,601.48,600.29,1.0851723]
[1742157360757,0.27782928,601.47,600.29,1.0851723]
[1742157360963,2.51575315,601.43,600.29,1.0851723]
[1742157361264,3.94718027,601.42,600.29,1.0851723]
[1742157361465,0.27781692,601.41,600.3,0.33316674]
[1742157361657,2.8570073,601.41,600.3,0.33316674]
[1742157361857,0.27781692,601.4,600.3,0.33316674]
[1742157362061,0.27781692,601.4,600.31,0.30587249]
[1742157362259,0.27776892,601.39,600.32,0.30586886]
[1742157362564,0.27776892,601.38,600.33,0.3331501]
[1742157362765,0.27776892,601.42,600.33,0.3331501]
[1742157362965,0.27776892,601.41,600.33,0.3331501]
[1742157363163,0.27776892,601.48,600.33,0.3331501]
[1742157363466,0.27776892,601.47,600.33,0.3331501]
[1742157363663,0.27776892,601.48,600.33,0.3331501]
[1742157363865,0.27790798,601.49,600.33,0.3331501]
[1742157364065,0.27776455,601.48,600.33,0.3331501]
[1742157367666,0.27777266,601.48,600.35,0.333139]
[1742157367866,0.27777266,601.47,600.35,0.333139]
[1742157368064,0.27777266,601.48,600.35,0.333139]
[1742157368264,0.27777266,601.47,600.35,0.333139]
[1742157368462,0.27777266,601.46,600.35,0.333139]
[1742157368667,0.27777266,601.45,600.35,0.333139]
[1742157368967,0.27777266,601.44,600.35,0.333139]
[1742157369168,0.27777266,601.48,600.35,0.333139]
[1742157369363,0.27777266,601.47,600.35,0.333139]
[1742157369563,0.27790798,601.49,600.35,0.333139]
[1742157369765,0.27778046,601.48,600.35,0.333139]
[1742157375073,0.27777462,601.47,600.35,0.333139]
[1742157375371,0.2777747,601.46,600.35,0.333139]
[1742157375572,0.2777747,601.48,600.35,0.333139]
[1742157375871,0.2777747,601.47,600.35,0.333139]
[1742157376070,0.2777747,601.48,600.35,0.333139]
[1742157376266,0.2777747,601.47,600.35,0.333139]
[1742157376465,0.2777747,601.48,600.35,0.333139]
[1742157376666,0.2777747,601.47,600.35,0.333139]
[1742157377071,0.2777747,601.46,600.35,0.333139]
[1742157377373,0.2777747,601.45,600.35,0.333139]
[1742157377570,0.2777747,601.44,600.35,0.333139]
[1742157377771,0.2777747,601.48,600.35,0.333139]
[1742157377971,0.2777747,601.47,600.35,0.333139]
[1742157378171,0.2777747,601.48,600.35,0.333139]
[1742157378473,0.2777747,601.47,600.35,0.333139]
[1742157378674,0.2777747,601.48,600.35,0.333139]
[1742157378871,0.2777747,601.46,600.35,0.333139]
[1742157379068,0.2777747,601.45,600.35,0.333139]
[1742157379273,0.2777747,601.48,600.35,0.333139]
[1742157379475,0.2777747,601.47,600.35,0.333139]
[1742157379774,0.2777747,601.46,600.35,0.333139]
[1742157379974,0.2777747,601.45,600.35,0.333139]
[1742157380173,0.2777747,601.44,600.35,0.333139]
[1742157380374,0.27790798,601.49,600.35,0.333139]
[1742157380573,0.27777226,601.48,600.35,0.333139]
[1742157382377,0.27777208,601.47,600.35,0.333139]
[1742157382680,0.27777208,601.48,600.35,0.333139]
[1742157382978,0.27777208,601.47,600.35,0.333139]
[1742157383278,0.27790798,601.49,600.35,0.333139]
[1742157383279,0.27777208,601.46,600.35,0.333139]
[1742157383479,0.27777208,601.48,600.35,0.333139]
[1742157383674,0.27777208,601.47,600.35,0.333139]
[1742157383872,0.27777208,601.48,600.35,0.333139]
[1742157384071,0.27777208,601.47,600.35,0.333139]
[1742157384276,0.27790798,601.49,600.35,0.333139]
[1742157389283,0.27777531,601.48,600.35,0.333139]
[1742157393178,0.27790798,601.49,600.35,0.333139]
[1742157393389,0.27783997,601.48,600.35,0.333139]
[1742157398692,0.27780487,601.47,600.35,0.333139]
[1742157398891,0.27780487,601.48,600.35,0.333139]
[1742157399085,0.27780487,601.47,600.35,0.333139]
[1742157399294,0.27780487,601.48,600.35,0.333139]
[1742157399489,0.27780487,601.47,600.35,0.333139]
[1742157399685,0.27780487,601.48,600.35,0.333139]
[1742157399990,0.27780487,601.47,600.35,0.333139]
[1742157400191,0.27780487,601.46,600.35,0.333139]
[1742157400497,0.27780573,601.45,600.35,0.333139]
[1742157400691,0.27780573,601.48,600.35,0.333139]
[1742157400888,0.27780573,601.47,600.35,0.333139]
[1742157401288,0.27780573,601.46,600.35,0.333139]
[1742157401490,0.27780573,601.48,600.35,0.333139]
[1742157401691,0.27780573,601.47,600.35,0.333139]
[1742157401893,0.27780573,601.48,600.35,0.333139]
[1742157402088,0.27790798,601.49,600.35,0.333139]
[1742157402089,0.27780573,601.46,600.35,0.333139]
[1742157402289,0.27780573,601.45,600.35,0.333139]
[1742157402489,0.27780573,601.44,600.35,0.333139]
[1742157402692,0.27780573,601.48,600.35,0.333139]
[1742157402889,0.27780573,601.47,600.35,0.333139]
[1742157403094,0.27780573,601.48,600.35,0.333139]
[1742157403395,0.27780573,601.47,600.35,0.333139]
[1742157403596,0.27780573,601.48,600.35,0.333139]
[1742157403797,0.27780573,601.47,600.35,0.333139]
[1742157403998,0.27780573,601.48,600.35,0.333139]
[1742157404192,0.27790798,601.49,600.35,0.333139]
[1742157404193,0.27780573,601.47,600.35,0.333139]
[1742157404399,0.27780573,601.46,600.35,0.333139]
[1742157404599,0.27780573,601.45,600.35,0.333139]
[1742157404799,0.27780573,601.44,600.35,0.333139]
[1742157405099,0.27780573,601.43,600.35,0.333139]
[1742157405299,0.27780573,601.42,600.35,0.333139]
[1742157405598,0.27780573,601.41,600.35,0.333139]
[1742157405799,0.27780573,601.48,600.35,0.333139]
[1742157406000,0.27780573,601.4,600.35,0.333139]
[1742157406192,0.27790798,601.49,600.36,0.30583324]
[1742157406193,0.27780573,601.47,600.36,0.30583324]
[1742157406498,0.27780573,601.46,600.37,0.3331279]
[1742157406700,0.27780573,601.45,600.37,0.3331279]
[1742157406898,0.27780573,601.44,600.37,0.3331279]
[1742157407198,0.27780573,601.43,600.37,0.3331279]
[1742157407399,0.27780573,601.48,600.37,0.3331279]
[1742157407593,0.27780573,601.47,600.37,0.3331279]
[1742157407795,0.2777283,601.46,600.37,0.3331279]
[1742157408003,0.2777283,601.48,600.37,0.3331279]
[1742157408198,0.2777283,601.47,600.37,0.3331279]
[1742157408398,0.2777283,601.48,600.37,0.3331279]
[1742157408601,0.2777283,601.47,600.37,0.3331279]
[1742157408797,0.2777283,601.48,600.37,0.3331279]
[1742157409103,0.2777283,601.47,600.37,0.3331279]
[1742157409304,0.2777283,601.48,600.37,0.3331279]
[1742157409506,0.27772832,601.47,600.37,0.3331279]
[1742157409701,0.27772832,601.46,600.37,0.3331279]
[1742157409903,0.27772832,601.48,600.37,0.3331279]
[1742157410099,0.27772832,601.47,600.37,0.3331279]
[1742157410299,0.27772832,601.48,600.37,0.3331279]
[1742157413902,0.27772832,601.48,600.38,0.30582564]
[1742157414103,0.27772832,601.48,600.39,0.3331168]
[1742157414300,0.27772832,601.48,600.4,0.30582564]
[1742157414503,0.27772832,601.48,600.41,0.33310571]
[1742157414703,0.27772832,601.48,600.42,0.30582564]
[1742157415005,0.27772832,601.48,600.43,0.33309461]
[1742157415205,0.27772832,601.48,600.44,0.30582564]
[1742157415402,0.27772832,601.48,600.45,0.33308352]
[1742157415801,0.27772832,601.48,600.46,0.30582657]
[1742157416000,0.27772832,601.48,600.46,0.63890454]
[1742157416200,0.27772832,601.48,600.46,0.33307797]
[1742157417808,0.27772832,601.48,600.47,0.30581906]
[1742157418405,0.27772832,601.48,600.46,0.33307797]
[1742157420609,0.27772832,601.48,600.47,0.30578725]
[1742157420809,0.27768803,601.47,600.48,0.63885365]
[1742157421009,0.27768803,601.48,600.49,0.63884811]
[1742157421209,0.27768803,601.47,600.5,0.63884256]
[1742157421408,0.27768803,601.46,600.51,0.33305024]
[1742157421601,0.27768803,601.45,600.51,0.33305024]
[1742157421807,0.27768803,601.44,600.51,0.33305024]
[1742157422007,0.27768803,601.48,600.51,0.33305024]
[1742157422610,0.27768803,601.48,600.52,0.795]
[1742157423206,0.27768803,601.48,600.52,1.12804469]
[1742157423406,0.27790798,601.49,600.53,0.33303914]
[1742157423611,0.27790798,601.49,600.54,0.30573995]
[1742157424009,0.27790798,601.49,600.55,0.33302805]
[1742157424805,0.27790798,601.49,600.56,0.30572633]
[1742157425006,0.27790798,601.49,600.57,0.33301696]
[1742157425308,0.27790798,601.49,600.58,0.30571769]
[1742157425504,0.27790798,601.49,600.59,0.33300587]
[1742157433409,0.27790798,601.49,600.6,0.30570636]
[1742157433608,0.27790798,601.49,600.61,0.33299478]
[1742157440119,0.27790798,601.49,600.62,0.609]
[1742157440319,0.27790798,601.49,600.63,0.3329837]
[1742157444618,0.27790798,601.49,600.64,0.30566855]
[1742157445815,0.27790798,601.49,600.65,0.33297261]
[1742157446418,0.27790798,601.49,600.66,0.30566626]
[1742157446619,2.51575315,602.44,600.67,0.33296152]
[1742157446821,0.33199428,602.42,600.67,0.33296152]
[1742157447021,0.27756937,602.41,600.67,0.33296152]
[1742157447217,0.33201082,602.39,600.67,0.33296152]
[1742157447416,0.27756937,602.38,600.67,0.33296152]
[1742157447620,0.33202735,602.36,600.67,0.33296152]
[1742157447816,0.27756937,602.35,600.67,0.33296152]
[1742157448022,0.33204389,602.33,600.67,0.33296152]
[1742157448219,0.27756937,602.32,600.67,0.33296152]
[1742157448416,0.33206043,602.3,600.67,0.33296152]
[1742157448620,0.27756937,602.29,600.67,0.33296152]
[1742157448816,0.60964083,602.28,600.67,0.33296152]
[1742157449017,0.60964634,602.27,600.68,0.30566879]
[1742157449216,0.60965185,602.26,600.69,0.33295044]
[1742157449422,0.60965737,602.25,600.7,0.30566879]
[1742157449622,0.60966288,602.24,600.71,0.33293935]
[1742157449923,0.6096684,602.23,600.72,0.30566879]
[1742157450223,0.27756937,602.22,600.72,0.30566879]
[1742157450521,0.27756937,602.21,600.72,0.30566879]
[1742157450717,2.51575315,602.14,600.72,0.30566879]
[1742157451024,3.9189675,602.13,600.72,0.30566879]
[1742157451219,3.91975182,602.12,600.73,0.30565943]
[1742157451424,0.27756268,602.11,600.74,0.30565943]
[1742157451724,0.27756268,602.1,600.75,0.63857661]
[1742157452023,0.27756268,602.09,600.76,0.63857107]
[1742157452220,0.27756268,602.08,600.77,0.30565943]
[1742157452420,0.27756268,602.07,600.78,0.33290056]
[1742157452620,0.27756268,602.06,600.78,0.33290056]
[1742157452821,0.27756268,602.05,600.78,0.33290056]
[1742157453021,0.27755839,602.04,600.78,0.33290056]
[1742157453219,0.27755839,602.11,600.78,0.33290056]
[1742157453424,0.27755839,602.03,600.78,0.33290056]
[1742157453621,0.33216521,602.11,600.78,0.33290056]
[1742157453823,0.2775586,602.1,600.78,0.33290056]
[1742157456926,0.27749437,602.09,600.78,0.33290056]
[1742157457127,0.27749437,602.1,600.78,0.33290056]
[1742157457327,0.27749437,602.09,600.78,0.33290056]
[1742157457526,0.27749437,602.1,600.78,0.33290056]
[1742157457723,0.27749437,602.09,600.78,0.33290056]
[1742157457922,0.27749437,602.1,600.78,0.33290056]
[1742157458127,0.27749437,602.09,600.78,0.33290056]
[1742157458327,0.27749437,602.1,600.78,0.33290056]
[1742157458629,0.27750457,602.09,600.78,0.33290056]
[1742157458824,0.27750457,602.1,600.78,0.33290056]
[1742157464027,0.33216521,602.11,600.78,0.33290056]
[1742157464232,0.27754336,602.1,600.78,0.33290056]
[1742157466033,0.27753985,602.09,600.78,0.33290056]
[1742157466228,0.27753985,602.09,600.78,1.05490056]
[1742157466429,0.27753985,602.08,600.78,1.05490056]
[1742157466627,0.27753985,602.1,600.78,1.05490056]
[1742157466833,2.51575315,602.59,600.79,0.30548067]
[1742157467033,0.60928814,602.58,600.81,0.33288394]
[1742157467237,0.27738201,602.57,600.82,0.30548067]